bitfinex/quotes_BTCUSD_20240803
["timestamp","ask_amount","ask_price","bid_price","bid_amount"]
[1722675988921,1.99975352,61667.0,61666.0,0.000913]
[1722675989365,1.73870803,61667.0,61666.0,0.000913]
[1722675989512,1.99976832,61667.0,61666.0,0.000913]
[1722675989744,1.38952241,61667.0,61666.0,0.000913]
[1722675989941,1.15029042,61667.0,61666.0,0.000913]
[1722675990289,0.90704942,61667.0,61666.0,0.000913]
[1722675990879,1.15029042,61667.0,61666.0,0.000913]
[1722675991083,0.89304942,61667.0,61666.0,0.000913]
[1722675991267,0.90704942,61667.0,61666.0,0.000913]
[1722675992151,0.89304942,61667.0,61666.0,0.000913]
[1722675992376,0.77956124,61667.0,61666.0,0.000913]
[1722675992577,0.89292522,61667.0,61666.0,0.000913]
[1722675993004,1.12210431,61667.0,61666.0,0.000913]
[1722675993206,1.13610431,61667.0,61666.0,0.000913]
[1722675993411,0.90686331,61667.0,61666.0,0.000913]
[1722675993651,0.66362231,61667.0,61666.0,0.000913]
[1722675994118,0.66420784,61667.0,61666.0,0.000913]
[1722675994966,0.90744884,61667.0,61666.0,0.000913]
[1722675996194,0.90827884,61667.0,61666.0,0.000913]
[1722675996958,1.15151984,61667.0,61666.0,0.000913]
[1722675997962,1.21401984,61667.0,61666.0,0.000913]
[1722675999117,1.15151984,61667.0,61666.0,0.000913]
[1722675999671,1.15151984,61667.0,61666.0,0.061713]
[1722675999672,0.90827884,61667.0,61666.0,0.061713]
[1722676000687,0.90827884,61667.0,61666.0,0.000913]
[1722676002568,0.30017684,61667.0,61666.0,0.00110809]
[1722676002779,0.42179684,61667.0,61666.0,0.00110809]
[1722676002991,0.42179684,61667.0,61666.0,0.07901752]
[1722676002992,0.66503784,61667.0,61666.0,0.07901752]
[1722676003214,0.55115024,61667.0,61666.0,0.06190809]
[1722676003421,0.90796501,61667.0,61666.0,0.06190809]
[1722676004866,0.90796501,61667.0,61666.0,0.061713]
[1722676005028,1.15120601,61667.0,61666.0,0.000913]
[1722676006489,0.90796501,61667.0,61666.0,0.000913]
[1722676006695,0.90783665,61667.0,61666.0,0.000913]
[1722676008482,0.66459565,61667.0,61666.0,0.000913]
[1722676009929,0.90783665,61667.0,61666.0,0.000913]
[1722676010135,0.90795415,61667.0,61666.0,0.000913]
[1722676010369,0.66471315,61667.0,61666.0,0.000913]
[1722676010715,0.90795415,61667.0,61666.0,0.000913]
[1722676011784,0.66471315,61667.0,61666.0,0.000913]
[1722676011902,0.90795415,61667.0,61666.0,0.000913]
[1722676012715,0.66471315,61667.0,61666.0,0.000913]
[1722676013594,0.79439124,61667.0,61666.0,0.000913]
[1722676013780,0.90835785,61667.0,61666.0,0.000913]
[1722676015300,0.90813652,61667.0,61666.0,0.000913]
[1722676017209,0.79439124,61667.0,61666.0,0.000913]
[1722676017460,0.90784896,61667.0,61666.0,0.000913]
[1722676020342,1.15108996,61667.0,61666.0,0.000913]
[1722676020512,0.66460796,61667.0,61666.0,0.000913]
[1722676020717,0.90784896,61667.0,61666.0,0.000913]
[1722676020967,0.66460796,61667.0,61666.0,0.063013]
[1722676021498,0.66460796,61667.0,61666.0,0.06320809]
[1722676021499,0.42136696,61667.0,61666.0,0.06320809]
[1722676022340,0.29974696,61667.0,61666.0,0.06320809]
[1722676022563,0.42136696,61667.0,61666.0,0.06320809]
[1722676022765,0.29974696,61667.0,61666.0,0.0802194]
[1722676023129,0.29928064,61667.0,61666.0,0.0802194]
[1722676023829,0.42090064,61667.0,61666.0,0.0802194]
[1722676026729,0.29869315,61667.0,61666.0,0.0802194]
[1722676028330,0.29869315,61667.0,61661.0,0.00977537]
[1722676028331,1.24514091,61653.0,61652.0,0.000913]
[1722676028540,1.13996812,61653.0,61652.0,0.000913]
[1722676028758,1.31840215,61653.0,61652.0,0.000913]
[1722676028989,1.32820706,61653.0,61652.0,0.000913]
[1722676029195,1.74102148,61653.0,61652.0,0.000913]
[1722676029399,1.35120706,61653.0,61652.0,0.000913]
[1722676029611,1.46020706,61653.0,61652.0,0.000913]
[1722676029817,1.70350406,61653.0,61652.0,0.000913]
[1722676030261,1.70538746,61653.0,61652.0,0.000913]
[1722676030797,1.39278555,61653.0,61652.0,0.000913]
[1722676030998,1.37678555,61653.0,61652.0,0.000913]
[1722676032621,1.31648555,61653.0,61652.0,0.000913]
[1722676033311,1.43772986,61653.0,61652.0,0.000913]
[1722676033506,1.31681801,61653.0,61652.0,0.000913]
[1722676034011,1.31682432,61653.0,61652.0,0.000913]
[1722676034239,1.43807018,61653.0,61652.0,0.000913]
[1722676034471,1.39122923,61653.0,61652.0,0.000913]
[1722676034671,1.65752623,61653.0,61652.0,0.000913]
[1722676036937,1.65760065,61653.0,61652.0,0.000913]
[1722676037520,1.66760065,61653.0,61652.0,0.000913]
[1722676037719,1.67760065,61653.0,61652.0,0.000913]
[1722676038212,1.65760065,61653.0,61652.0,0.000913]
[1722676038557,1.67760065,61653.0,61652.0,0.000913]
[1722676038966,1.65760065,61653.0,61652.0,0.000913]
[1722676039743,1.67760065,61653.0,61652.0,0.000913]
[1722676039968,1.65760065,61653.0,61652.0,0.000913]
[1722676040193,1.67760065,61653.0,61652.0,0.000913]
[1722676040408,1.67687549,61653.0,61652.0,0.000913]
[1722676041555,1.82448592,61653.0,61652.0,0.000913]
[1722676042754,1.80448592,61653.0,61652.0,0.000913]
[1722676042961,1.82448592,61653.0,61652.0,0.000913]
[1722676043321,1.80448592,61653.0,61652.0,0.000913]
[1722676043739,1.54290015,61653.0,61652.0,0.000913]
[1722676043934,1.80433988,61653.0,61652.0,0.000913]
[1722676044335,1.80424794,61653.0,61652.0,0.000913]
[1722676044545,1.92529955,61653.0,61652.0,0.000913]
[1722676045560,1.92502484,61653.0,61652.0,0.000913]
[1722676047475,1.82397323,61653.0,61652.0,0.000913]
[1722676049068,1.82397323,61653.0,61629.0,0.010043]
[1722676049069,1.16964591,61630.0,61629.0,0.010043]
[1722676049278,1.58153427,61630.0,61629.0,0.01866494]
[1722676049483,1.46840515,61630.0,61629.0,0.010043]
[1722676049693,1.59140515,61630.0,61629.0,0.010043]
[1722676049892,1.61140515,61630.0,61629.0,0.010043]
[1722676050135,1.73226108,61630.0,61629.0,0.010043]
[1722676050335,2.2348073,61630.0,61629.0,0.010043]
[1722676050708,2.10689215,61630.0,61629.0,0.010043]
[1722676051283,2.24167102,61630.0,61629.0,0.010043]
[1722676051508,2.12089215,61630.0,61629.0,0.010043]
[1722676051724,2.68265884,61630.0,61629.0,0.010043]
[1722676051923,2.68265884,61630.0,61629.0,1e-06]
[1722676052126,2.17094855,61630.0,61629.0,1e-06]
[1722676052256,1.84838736,61630.0,61629.0,1e-06]
[1722676052459,1.83438736,61630.0,61629.0,1e-06]
[1722676052738,1.84838736,61630.0,61629.0,1e-06]
[1722676052888,1.68650515,61630.0,61629.0,1e-06]
[1722676053087,1.95625709,61630.0,61629.0,1e-06]
[1722676053308,1.97025709,61630.0,61629.0,1e-06]
[1722676053511,2.21364409,61630.0,61629.0,1e-06]
[1722676054076,2.22322696,61630.0,61629.0,1e-06]
[1722676054273,2.48599299,61630.0,61629.0,1e-06]
[1722676055343,2.40724105,61630.0,61629.0,1e-06]
[1722676055554,2.14447502,61630.0,61629.0,1e-06]
[1722676055755,2.5642164,61630.0,61629.0,1e-06]
[1722676056946,2.40686123,61630.0,61629.0,1e-06]
[1722676059978,2.14430423,61630.0,61629.0,1e-06]
[1722676060511,2.14282615,61630.0,61629.0,1e-06]
[1722676060897,1.99536245,61630.0,61629.0,1e-06]
[1722676061093,2.16282393,61630.0,61629.0,1e-06]
[1722676062357,1.31843693,61630.0,61629.0,1e-06]
[1722676062531,0.9081997,61630.0,61629.0,0.065801]
[1722676062744,0.4214257,61630.0,61629.0,0.07547121]
[1722676062968,0.4214257,61630.0,61629.0,0.15167121]
[1722676063099,0.6648127,61630.0,61629.0,0.15147612]
[1722676063299,0.8941997,61630.0,61629.0,0.15147612]
[1722676063482,0.9081997,61630.0,61629.0,0.15147612]
[1722676064095,0.8801997,61630.0,61629.0,0.15147612]
[1722676064296,0.8941997,61630.0,61629.0,0.15147612]
[1722676064508,0.9081997,61630.0,61629.0,0.15147612]
[1722676064712,0.8941997,61630.0,61629.0,0.15147612]
[1722676065114,0.9071997,61630.0,61629.0,0.15147612]
[1722676065322,1.13882355,61630.0,61629.0,0.15147612]
[1722676065529,0.89543655,61630.0,61629.0,0.15147612]
[1722676065768,0.89443655,61630.0,61629.0,0.15147612]
[1722676065969,0.90843655,61630.0,61629.0,0.15147612]
[1722676066369,0.90824137,61630.0,61629.0,0.15147612]
[1722676066573,0.89424137,61630.0,61629.0,0.15147612]
[1722676066781,0.90824137,61630.0,61629.0,0.15147612]
[1722676067555,1.15162837,61630.0,61629.0,0.15147612]
[1722676067754,0.90824137,61630.0,61629.0,0.15147612]
[1722676069506,0.90824137,61630.0,61629.0,0.00947612]
[1722676069723,0.90813555,61630.0,61629.0,0.00947612]
[1722676071971,0.90813555,61630.0,61629.0,0.15347612]
[1722676072193,0.90813555,61630.0,61629.0,0.144001]
[1722676073387,0.79356106,61630.0,61629.0,0.144001]
[1722676073753,0.90844991,61630.0,61629.0,0.144001]
[1722676073940,0.66506291,61630.0,61629.0,0.144001]
[1722676074090,0.30017809,61630.0,61629.0,0.144001]
[1722676074291,0.30017809,61630.0,61629.0,0.15353867]
[1722676075130,0.29988519,61630.0,61629.0,0.15353867]
[1722676075553,0.42157819,61630.0,61629.0,0.15353867]
[1722676075921,0.29988519,61630.0,61629.0,0.15353867]
[1722676076322,0.29988519,61630.0,61629.0,0.15334358]
[1722676076323,0.90835219,61630.0,61629.0,0.15334358]
[1722676076528,1.15173919,61630.0,61629.0,0.00934358]
[1722676076766,1.15173919,61630.0,61629.0,1e-06]
[1722676077607,1.41812619,61630.0,61629.0,1e-06]
[1722676077900,1.56662512,61630.0,61629.0,1e-06]
[1722676078426,1.32323812,61630.0,61629.0,1e-06]
[1722676080251,1.33324478,61630.0,61629.0,1e-06]
[1722676080683,1.33338004,61630.0,61629.0,1e-06]
[1722676083033,1.0701499,61630.0,61629.0,1e-06]
[1722676083237,1.33325925,61630.0,61629.0,1e-06]
[1722676083436,1.0701499,61630.0,61629.0,1e-06]
[1722676083638,1.33326468,61630.0,61629.0,1e-06]
[1722676085569,1.32026468,61630.0,61629.0,1e-06]
[1722676085770,1.33426468,61630.0,61629.0,1e-06]
[1722676086172,1.30626468,61630.0,61629.0,1e-06]
[1722676086376,1.32026468,61630.0,61629.0,1e-06]
[1722676087201,0.43540402,61630.0,61629.0,0.14219609]
[1722676087404,0.28686817,61630.0,61629.0,0.14219609]
[1722676087608,0.28686817,61630.0,61629.0,0.15133585]
[1722676087609,0.30086817,61630.0,61629.0,0.15133585]
[1722676087814,0.66594817,61630.0,61629.0,0.15133585]
[1722676088039,0.39456117,61630.0,61629.0,0.15133585]
[1722676088441,0.40856117,61630.0,61629.0,0.15133585]
[1722676089057,0.63794817,61630.0,61629.0,0.15133585]
[1722676089259,0.66394817,61630.0,61629.0,0.15133585]
[1722676089648,0.42056117,61630.0,61629.0,0.15133585]
[1722676090281,0.29917946,61630.0,61629.0,0.15133585]
[1722676090461,0.42087246,61630.0,61629.0,0.15133585]
[1722676093695,0.42117758,61630.0,61629.0,0.15133585]
[1722676093901,0.29940707,61630.0,61629.0,0.15133585]
[1722676094100,0.18428924,61630.0,61629.0,0.15133585]
[1722676094277,0.29937116,61630.0,61629.0,0.15133585]
[1722676096365,0.42106416,61630.0,61629.0,0.15133585]
[1722676096725,0.29937116,61630.0,61629.0,0.15133585]
[1722676097203,0.42106416,61630.0,61629.0,0.15133585]
[1722676097406,0.29937116,61630.0,61629.0,0.15133585]
[1722676097904,0.29937116,61630.0,61629.0,0.27303085]
[1722676098563,0.29937116,61630.0,61629.0,0.15133585]
[1722676102239,0.29937116,61630.0,61629.0,0.51642185]
[1722676102993,0.28637116,61630.0,61629.0,0.27303085]
[1722676103297,0.29237116,61630.0,61629.0,0.27303085]
[1722676103497,0.29237116,61630.0,61629.0,0.51642185]
[1722676103903,0.27937116,61630.0,61629.0,0.27303085]
[1722676104110,0.28637116,61630.0,61629.0,0.27303085]
[1722676104716,0.28618054,61630.0,61629.0,0.27303085]
[1722676105735,0.28618054,61630.0,61629.0,0.51642185]
[1722676105954,0.28618054,61630.0,61629.0,0.27303085]
[1722676106746,0.28618054,61630.0,61629.0,0.51642185]
[1722676107123,0.28618054,61630.0,61629.0,0.27303085]
[1722676111177,0.17128924,61630.0,61629.0,0.27303085]
[1722676111406,0.28572004,61630.0,61629.0,0.51642185]
[1722676111603,0.17128924,61630.0,61629.0,0.51642185]
[1722676111978,0.28602934,61630.0,61629.0,0.51642185]
[1722676114236,0.17128924,61630.0,61629.0,0.51642185]
[1722676114414,0.28614696,61630.0,61629.0,0.51642185]
[1722676114814,0.28614817,61630.0,61629.0,0.51642185]
[1722676115047,0.28614817,61630.0,61629.0,0.75981285]
[1722676115253,0.17128924,61630.0,61629.0,0.75981285]
[1722676115455,0.28625666,61630.0,61629.0,0.75981285]
[1722676117989,0.28625666,61630.0,61629.0,0.51642185]
[1722676118420,0.28633233,61630.0,61629.0,0.51642185]
[1722676120588,0.28633233,61630.0,61629.0,0.00933585]
[1722676120790,0.40802533,61630.0,61629.0,0.00933585]
[1722676121219,0.40802533,61630.0,61629.0,0.00019609]
[1722676121726,0.40802533,61630.0,61629.0,0.00932141]
[1722676121919,0.40736645,61630.0,61629.0,0.00019609]
[1722676122158,0.40736645,61630.0,61629.0,0.00932141]
[1722676122314,0.40736645,61630.0,61629.0,0.00019609]
[1722676122516,0.40736645,61630.0,61629.0,0.00932141]
[1722676122759,0.40736645,61630.0,61629.0,0.00019609]
[1722676122980,0.40736645,61630.0,61629.0,0.00932141]
[1722676125252,0.29298224,61630.0,61629.0,0.00932141]
[1722676125460,0.65065544,61630.0,61629.0,0.00932141]
[1722676126300,0.89404244,61630.0,61629.0,0.00932141]
[1722676128258,1.03434244,61630.0,61629.0,0.00932141]
[1722676128663,1.08286637,61630.0,61629.0,0.00932141]
[1722676128838,0.92005624,61630.0,61629.0,0.00932141]
[1722676129041,1.03371584,61630.0,61629.0,0.00932141]
[1722676129243,1.10650174,61630.0,61629.0,0.00932141]
[1722676130628,1.03371584,61630.0,61629.0,0.00932141]
[1722676131531,1.13079106,61630.0,61629.0,0.00932141]
[1722676131687,1.52137058,61630.0,61629.0,0.00912632]
[1722676131890,1.48079536,61630.0,61629.0,0.00912632]
[1722676132090,1.48079536,61630.0,61629.0,1e-06]
[1722676132316,1.48079536,61630.0,61629.0,0.00019609]
[1722676132837,1.56990819,61630.0,61629.0,0.00019609]
[1722676133011,1.42429536,61630.0,61629.0,0.00019609]
[1722676133715,1.56990819,61630.0,61629.0,1e-06]
[1722676134116,1.42429536,61630.0,61629.0,1e-06]
[1722676135631,1.18090836,61630.0,61629.0,1e-06]
[1722676135854,1.17980318,61630.0,61629.0,1e-06]
[1722676136194,1.18104911,61630.0,61629.0,1e-06]
[1722676136893,1.03355734,61630.0,61629.0,1e-06]
[1722676137974,1.18098608,61630.0,61629.0,1e-06]
[1722676138173,1.03355734,61630.0,61629.0,1e-06]
[1722676138994,1.1810042,61630.0,61629.0,1e-06]
[1722676140007,1.03355734,61630.0,61629.0,1e-06]
[1722676140640,1.09361443,61630.0,61629.0,1e-06]
[1722676141315,0.97225734,61630.0,61629.0,0.0077178]
[1722676141517,1.0936095,61630.0,61629.0,1e-06]
[1722676141741,1.0936095,61630.0,61629.0,0.00771429]
[1722676141929,1.0936095,61630.0,61629.0,1e-06]
[1722676142202,0.72887034,61630.0,61629.0,0.0644091]
[1722676142379,0.82595653,61630.0,61629.0,0.05669609]
[1722676142735,0.64987034,61630.0,61629.0,0.05669609]
[1722676142937,0.64987034,61630.0,61629.0,0.00019609]
[1722676143304,0.50356953,61630.0,61629.0,0.00019609]
[1722676143545,0.35760552,61630.0,61629.0,0.05669609]
[1722676143715,0.47929852,61630.0,61629.0,0.05669609]
[1722676143923,0.47929852,61630.0,61629.0,0.0644091]
[1722676144070,0.40648334,61630.0,61629.0,0.05669609]
[1722676144274,0.40648334,61630.0,61629.0,0.0644091]
[1722676144481,0.35760724,61630.0,61629.0,0.0644091]
[1722676145117,0.17128924,61630.0,61629.0,0.0644091]
[1722676145315,0.33398484,61630.0,61629.0,0.0644091]
[1722676145571,0.21983496,61630.0,61629.0,0.0644091]
[1722676145736,0.33398477,61630.0,61629.0,0.0644091]
[1722676146205,0.33398477,61630.0,61629.0,0.00771401]
[1722676146206,0.91634305,61630.0,61629.0,0.00771401]
[1722676146431,0.511904,61626.0,61625.0,0.4728863]
[1722676146644,1.32681905,61626.0,61625.0,0.4728863]
[1722676146854,1.21266924,61626.0,61625.0,0.4728863]
[1722676147069,1.47447785,61626.0,61625.0,0.4728863]
[1722676147275,1.44097785,61626.0,61625.0,0.4728863]
[1722676147479,1.44255224,61626.0,61625.0,0.4728863]
[1722676149306,1.45655224,61626.0,61625.0,0.4728863]
[1722676149507,1.47055224,61626.0,61625.0,0.4728863]
[1722676149725,1.61597652,61626.0,61625.0,0.4728863]
[1722676150071,1.47055224,61626.0,61625.0,0.4728863]
[1722676150418,1.6148526,61626.0,61625.0,0.4728863]
[1722676150635,1.46806323,61626.0,61625.0,0.4728863]
[1722676151139,1.32152275,61626.0,61625.0,0.4728863]
[1722676151900,1.32194386,61626.0,61625.0,0.4728863]
[1722676155533,1.0779453,61626.0,61625.0,0.4737993]
[1722676155942,0.96534063,61626.0,61625.0,0.4737993]
[1722676156197,1.07796144,61626.0,61625.0,0.4737993]
[1722676156399,1.22337413,61626.0,61625.0,0.4737993]
[1722676156745,1.22494852,61626.0,61625.0,0.4737993]
[1722676157150,1.22530204,61626.0,61625.0,0.4737993]
[1722676159358,1.22372765,61626.0,61625.0,0.4737993]
[1722676160191,1.22530204,61626.0,61625.0,0.4737993]
[1722676160397,1.05392765,61626.0,61625.0,0.4737993]
[1722676160623,1.07850204,61626.0,61625.0,0.4737993]
[1722676161251,1.07692765,61626.0,61625.0,0.4737993]
[1722676161508,1.32190504,61626.0,61625.0,0.4737993]
[1722676162491,1.3199656,61626.0,61625.0,0.4737993]
[1722676162694,1.32153999,61626.0,61625.0,0.4737993]
[1722676162910,1.3199656,61626.0,61625.0,0.4737993]
[1722676163314,1.32153999,61626.0,61625.0,0.4737993]
[1722676163514,1.3199656,61626.0,61625.0,0.4737993]
[1722676163856,1.32153999,61626.0,61625.0,0.4737993]
[1722676164424,1.3199656,61626.0,61625.0,0.4737993]
[1722676165389,1.32153999,61626.0,61625.0,0.4737993]
[1722676165928,1.06194363,61626.0,61625.0,0.4737993]
[1722676166128,1.32167578,61626.0,61625.0,0.4737993]
[1722676166718,1.46377223,61626.0,61625.0,0.4737993]
[1722676167239,1.70717523,61626.0,61625.0,0.4737993]
[1722676167529,1.83698014,61626.0,61625.0,0.4737993]
[1722676167921,1.81698014,61626.0,61625.0,0.4737993]
[1722676169304,3.58608855,61626.0,61625.0,0.4737993]
[1722676170682,3.42258014,61626.0,61625.0,0.4737993]
[1722676174533,3.40258014,61626.0,61625.0,0.4737993]
[1722676175308,3.25571967,61626.0,61625.0,0.4737993]
[1722676176290,3.14287715,61626.0,61625.0,0.4737993]
[1722676176661,3.40284311,61626.0,61625.0,0.4737993]
[1722676176860,3.42284311,61626.0,61625.0,0.4737993]
[1722676177678,3.40284311,61626.0,61625.0,0.4737993]
[1722676177816,3.16287715,61626.0,61625.0,0.4737993]
[1722676178015,3.14287715,61626.0,61625.0,0.4737993]
[1722676178632,3.16287715,61626.0,61625.0,0.4737993]
[1722676178838,3.14287715,61626.0,61625.0,0.4737993]
[1722676179068,3.16287715,61626.0,61625.0,0.4737993]
[1722676179220,3.40290444,61626.0,61625.0,0.4737993]
[1722676179650,3.27589096,61626.0,61625.0,0.4737993]
[1722676179852,3.34090596,61626.0,61625.0,0.4737993]
[1722676180055,3.22789215,61626.0,61625.0,0.4737993]
[1722676181117,3.34082013,61626.0,61625.0,0.4737993]
[1722676181553,3.22789215,61626.0,61625.0,0.4737993]
[1722676181724,3.48775447,61626.0,61625.0,0.4737993]
[1722676182063,3.46775447,61626.0,61625.0,0.4737993]
[1722676183447,3.4678278,61626.0,61625.0,0.4737993]
[1722676183827,3.46784872,61626.0,61625.0,0.4737993]
[1722676186218,3.46806381,61626.0,61625.0,0.4737993]
[1722676187222,3.46889381,61626.0,61625.0,0.4737993]
[1722676187425,3.4891385,61626.0,61625.0,0.4737993]
[1722676191455,3.22872215,61626.0,61625.0,0.4737993]
[1722676191665,3.48861916,61626.0,61625.0,0.4737993]
[1722676193637,4.0541771,61626.0,61625.0,0.29534512]
[1722676193856,1.42522591,61620.0,61619.0,0.010043]
[1722676194065,2.83110916,61620.0,61619.0,0.010043]
[1722676194272,2.83110916,61620.0,61619.0,1e-06]
[1722676195064,1.36869691,61618.0,61616.0,0.010043]
[1722676195277,2.02762271,61618.0,61616.0,0.010043]
[1722676195501,2.12780415,61618.0,61616.0,0.010043]
[1722676195701,2.04905221,61618.0,61616.0,0.010043]
[1722676195911,2.16123958,61618.0,61616.0,0.010043]
[1722676196319,2.33885313,61618.0,61616.0,0.010043]
[1722676196603,2.32451204,61618.0,61616.0,0.010043]
[1722676196754,2.33851204,61618.0,61616.0,0.010043]
[1722676196964,2.35251204,61618.0,61616.0,0.010043]
[1722676197168,2.18889849,61618.0,61616.0,0.010043]
[1722676197413,2.19047288,61618.0,61616.0,0.010043]
[1722676198242,2.19047288,61618.0,61612.0,0.000913]
[1722676198243,1.66880691,61613.0,61612.0,0.000913]
[1722676198504,4.36446028,61613.0,61612.0,0.000913]
[1722676198691,4.35800849,61613.0,61612.0,0.000913]
[1722676199526,4.38600849,61613.0,61612.0,0.000913]
[1722676200225,4.54943261,61613.0,61612.0,0.000913]
[1722676200449,3.76595349,61613.0,61612.0,0.000913]
[1722676200659,2.6212592,61613.0,61612.0,0.000913]
[1722676201172,2.62118218,61613.0,61612.0,0.000913]
[1722676202595,2.72118218,61613.0,61612.0,0.000913]
[1722676203583,2.74418218,61613.0,61612.0,0.000913]
[1722676204188,2.63255124,61613.0,61612.0,0.000913]
[1722676204395,2.74491825,61613.0,61612.0,0.000913]
[1722676204585,2.74491825,61613.0,61612.0,0.14890809]
[1722676204586,0.66300825,61613.0,61612.0,0.14890809]
[1722676204834,0.29783968,61613.0,61612.0,0.14890809]
[1722676205033,0.41956668,61613.0,61612.0,0.14890809]
[1722676205670,0.29783968,61613.0,61612.0,0.14890809]
[1722676206075,0.28383968,61613.0,61612.0,0.14890809]
[1722676206252,0.2841265,61613.0,61612.0,0.14890809]
[1722676206455,0.2981265,61613.0,61612.0,0.14890809]
[1722676206887,0.6353085,61613.0,61612.0,0.14890809]
[1722676207090,0.8787635,61613.0,61612.0,0.14890809]
[1722676207338,0.8887635,61613.0,61612.0,0.14890809]
[1722676207461,0.9027635,61613.0,61612.0,0.14890809]
[1722676207669,0.90294831,61613.0,61612.0,0.14890809]
[1722676207871,0.88894831,61613.0,61612.0,0.14890809]
[1722676208155,0.63549331,61613.0,61612.0,0.14890809]
[1722676208282,0.89294831,61613.0,61612.0,0.14890809]
[1722676208632,0.87894831,61613.0,61612.0,0.14890809]
[1722676209393,1.03827926,61613.0,61612.0,0.14890809]
[1722676209795,0.89294831,61613.0,61612.0,0.14890809]
[1722676210004,1.02427926,61613.0,61612.0,0.14890809]
[1722676210231,1.28173426,61613.0,61612.0,0.066813]
[1722676210404,1.13640331,61613.0,61612.0,0.066813]
[1722676210605,1.15040331,61613.0,61612.0,0.066813]
[1722676210954,1.15040331,61613.0,61612.0,0.000913]
[1722676211154,1.29685137,61613.0,61612.0,0.000913]
[1722676213007,1.15040331,61613.0,61612.0,0.000913]
[1722676213903,0.90694831,61613.0,61612.0,0.00110809]
[1722676214118,1.05234785,61613.0,61612.0,0.00110809]
[1722676214511,0.90695689,61613.0,61612.0,0.00110809]
[1722676214892,0.79409624,61613.0,61612.0,0.00110809]
[1722676215138,0.90695418,61613.0,61612.0,0.00110809]
[1722676215772,0.90695418,61613.0,61612.0,0.000913]
[1722676215980,0.79409624,61613.0,61612.0,0.000913]
[1722676216187,1.2973851,61613.0,61612.0,0.000913]
[1722676216390,1.0539301,61613.0,61612.0,0.000913]
[1722676217418,1.2973851,61613.0,61612.0,0.000913]
[1722676217841,1.3203851,61613.0,61612.0,0.000913]
[1722676218046,1.31985235,61613.0,61612.0,0.000913]
[1722676218866,1.48334967,61613.0,61612.0,0.000913]
[1722676219070,1.31985235,61613.0,61612.0,0.000913]
[1722676219699,1.48334967,61613.0,61612.0,0.000913]
[1722676220112,1.72680467,61613.0,61612.0,0.000913]
[1722676220322,1.89711226,61613.0,61612.0,0.000913]
[1722676220497,1.97621226,61613.0,61612.0,0.000913]
[1722676221373,2.21475871,61613.0,61612.0,0.000913]
[1722676221587,1.96032977,61613.0,61612.0,0.000913]
[1722676222005,1.97432977,61613.0,61612.0,0.000913]
[1722676222214,1.98409281,61613.0,61612.0,0.000913]
[1722676222639,1.97009281,61613.0,61612.0,0.000913]
[1722676222844,1.98409281,61613.0,61612.0,0.000913]
[1722676223251,2.22754781,61613.0,61612.0,0.000913]
[1722676223456,2.38490298,61613.0,61612.0,0.000913]
[1722676223676,1.70859191,61605.0,61604.0,0.010043]
[1722676223886,3.71846977,61605.0,61604.0,0.010043]
[1722676224086,3.96195577,61605.0,61604.0,0.010043]
[1722676224520,4.36995577,61605.0,61604.0,0.010043]
[1722676225142,4.38395577,61605.0,61604.0,0.010043]
[1722676225361,4.38395577,61605.0,61590.0,0.010043]
[1722676225362,0.01,61591.0,61590.0,0.010043]
[1722676225560,1.8569558,61591.0,61590.0,0.010043]
[1722676225771,2.0351077,61591.0,61590.0,0.010043]
[1722676225980,2.2686497,61591.0,61590.0,0.010043]
[1722676226198,2.53190143,61591.0,61590.0,0.010043]
[1722676226403,2.1251077,61591.0,61590.0,0.010043]
[1722676226551,2.1391077,61591.0,61590.0,0.010043]
[1722676226752,2.1491077,61591.0,61590.0,0.010043]
[1722676226956,2.3926497,61591.0,61590.0,0.010043]
[1722676227159,2.55581348,61591.0,61590.0,0.010043]
[1722676227341,2.4066497,61591.0,61590.0,0.010043]
[1722676227538,2.45722813,61591.0,61590.0,0.010043]
[1722676227736,2.42922813,61591.0,61590.0,0.010043]
[1722676228168,2.61039191,61591.0,61590.0,0.010043]
[1722676228421,2.45701397,61591.0,61590.0,0.010043]
[1722676228804,2.39643554,61591.0,61590.0,0.010043]
[1722676230421,2.15289354,61591.0,61590.0,0.010043]
[1722676230819,2.1526584,61591.0,61590.0,0.010043]
[1722676231167,2.23141034,61591.0,61590.0,0.010043]
[1722676231377,2.47558426,61591.0,61590.0,0.010043]
[1722676231799,2.21915018,61591.0,61590.0,0.010043]
[1722676232003,2.62162002,61591.0,61590.0,0.010043]
[1722676232199,2.63162002,61591.0,61590.0,0.010043]
[1722676232403,2.47684385,61591.0,61590.0,0.010043]
[1722676232929,2.08744853,61591.0,61590.0,0.010043]
[1722676233284,2.0872532,61591.0,61590.0,0.010043]
[1722676233483,2.3407952,61591.0,61590.0,0.010043]
[1722676234230,2.62514461,61591.0,61590.0,0.010043]
[1722676234640,2.61514461,61591.0,61590.0,0.010043]
[1722676235047,2.60114461,61591.0,61590.0,0.010043]
[1722676235262,2.29630261,61591.0,61590.0,0.010043]
[1722676235466,2.23310261,61591.0,61590.0,0.010043]
[1722676235692,2.07277712,61591.0,61590.0,0.010043]
[1722676235895,2.05877712,61591.0,61590.0,0.010043]
[1722676236528,2.15523414,61591.0,61590.0,0.010043]
[1722676236768,2.16923414,61591.0,61590.0,0.010043]
[1722676236944,2.41277614,61591.0,61590.0,0.010043]
[1722676237116,2.18323414,61591.0,61590.0,0.010043]
[1722676237318,2.42677614,61591.0,61590.0,0.010043]
[1722676237519,2.16923414,61591.0,61590.0,0.010043]
[1722676237726,2.18323414,61591.0,61590.0,0.010043]
[1722676237927,2.18323414,61591.0,61590.0,0.090143]
[1722676237928,1.98502518,61591.0,61590.0,0.090143]
[1722676238155,1.97102518,61591.0,61590.0,0.153443]
[1722676238350,1.48394118,61591.0,61590.0,0.15363809]
[1722676238673,1.28657691,61591.0,61590.0,0.15363809]
[1722676238874,1.64139284,61591.0,61590.0,0.15363809]
[1722676239100,1.62739284,61591.0,61590.0,0.15363809]
[1722676239324,1.64139284,61591.0,61590.0,0.15363809]
[1722676240158,1.62739284,61591.0,61590.0,0.15363809]
[1722676240685,1.64139284,61591.0,61590.0,0.15363809]
[1722676241613,1.53011891,61591.0,61590.0,0.15363809]
[1722676241855,1.39781212,61591.0,61590.0,0.15363809]
[1722676242009,1.03269445,61591.0,61590.0,0.15363809]
[1722676242213,0.29669445,61591.0,61590.0,0.15363809]
[1722676242421,0.18545924,61591.0,61590.0,0.15363809]
[1722676242819,0.29656158,61591.0,61590.0,0.15363809]
[1722676243042,0.17145924,61591.0,61590.0,0.15363809]
[1722676243274,0.15745924,61591.0,61590.0,0.16783809]
[1722676243476,0.26856133,61591.0,61590.0,0.16783809]
[1722676243759,0.27756133,61591.0,61590.0,0.16783809]
[1722676243969,0.27756133,61591.0,61590.0,0.15363809]
[1722676244165,0.27756133,61591.0,61590.0,0.16783809]